fUST/lending_fUST_20251012
["ID","MTS","AMOUNT","RATE_DAILY","PERIOD"]
[391002234,1760281852158,-195.364243,0.0002237,7]
[391002235,1760281852168,-195.364243,0.0002237,7]
[391002236,1760281852178,-195.364243,0.0002237,7]
[391002237,1760281852188,-151.548632,0.0002237,7]
[391002238,1760281852198,-151.0,0.0002237,7]
[391002239,1760281852208,-648.776729,0.0002237,7]
[391002240,1760281852218,-151.0,0.0002237,7]
[391002241,1760281852227,-648.776729,0.0002237,7]
[391002242,1760281852238,-648.776729,0.0002237,7]
[391002243,1760281852249,-648.776729,0.0002237,7]
[391002244,1760281852259,-152.061452,0.0002237,7]
[391002245,1760281852269,-151.0,0.0002237,7]
[391002246,1760281852279,-151.0,0.0002237,7]
[391002247,1760281852289,-3406.59352137,0.0002237,2]
[391002248,1760281852300,-151.0,0.000224,7]
[391002249,1760281852310,-153.136736,0.000224,7]
[391002250,1760281852320,-250.0,0.000224,10]
[391002251,1760281852330,-4247.72268307,0.000224,2]
[391002252,1760281852340,-151.0,0.00022465,7]
[391002253,1760281852350,-151.890756,0.00022465,7]
[391002254,1760281852365,-151.890756,0.00022465,7]
[391002255,1760281852375,-151.890756,0.00022465,7]
[391002256,1760281852384,-151.890756,0.00022465,7]
[391002257,1760281852395,-151.0,0.00022465,7]
[391002258,1760281852404,-151.0,0.00022465,7]
[391002259,1760281852414,-151.0,0.00022465,7]
[391002260,1760281852425,-1500.0,0.00022465,10]
[391002261,1760281852434,-217.0,0.00022478,2]
[391002262,1760281852444,-325126.58347573,0.000225,2]
[391002263,1760281852454,-1567.9519887,0.000225,7]
[391002264,1760281852464,-151.0,0.000225,7]
[391002265,1760281852474,-151.0,0.000225,7]
[391002266,1760281852484,-151.0,0.000225,7]
[391002267,1760281852494,-151.0,0.000225,7]
[391002268,1760281852505,-151.0,0.000225,7]
[391002269,1760281852515,-151.0,0.000225,7]
[391002270,1760281852526,-151.0,0.000225,7]
[391002271,1760281852536,-151.0,0.000225,7]
[391002272,1760281852546,-151.0,0.000225,7]
[391002273,1760281852557,-151.0,0.000225,7]
[391002274,1760281852568,-151.0,0.000225,7]
[391002275,1760281852578,-151.0,0.000225,7]
[391002276,1760281852588,-151.0,0.000225,7]
[391002277,1760281852598,-151.0,0.000225,7]
[391002278,1760281852611,-151.0,0.000225,7]
[391002279,1760281852622,-151.0,0.000225,7]
[391002280,1760281852632,-151.0,0.000225,7]
[391002281,1760281852642,-151.0,0.000225,7]
[391002282,1760281852652,-151.890756,0.000225,7]
[391002283,1760281852662,-151.0,0.000225,7]
[391002284,1760281852672,-151.890756,0.000225,7]
[391002285,1760281852683,-151.0,0.000225,7]
[391002286,1760281852693,-151.890756,0.000225,7]
[391002287,1760281852703,-151.890756,0.000225,7]
[391002288,1760281852713,-153.186894,0.000225,7]
[391002289,1760281852722,-151.0,0.000225,7]
[391002290,1760281852732,-151.0,0.000225,7]
[391002291,1760281852741,-151.0,0.000225,7]
[391002292,1760281852752,-151.0,0.000225,7]
[391002293,1760281852768,-153.505272,0.000225,7]
[391002294,1760281852777,-423.420611,0.000225,7]
[391002295,1760281852787,-423.420611,0.000225,7]
[391002296,1760281852798,-195.364243,0.000225,7]
[391002297,1760281852807,-195.364243,0.000225,7]
[391002298,1760281852817,-195.364243,0.000225,7]
[391002299,1760281852827,-195.364243,0.000225,7]
[391002300,1760281852839,-151.0,0.000225,7]
[391002301,1760281852850,-648.776729,0.000225,7]
[391002302,1760281852864,-151.0,0.000225,7]
[391002303,1760281852875,-648.776729,0.000225,7]
[391002304,1760281852884,-648.776729,0.000225,7]
[391002305,1760281852895,-648.776729,0.000225,7]
[391002306,1760281852906,-151.0,0.000225,7]
[391002307,1760281852917,-151.0,0.000225,7]
[391002308,1760281852928,-559.67229,0.000225,7]
[391002309,1760281852938,-559.67229,0.000225,7]
[391002310,1760281852949,-559.67229,0.000225,7]
[391002311,1760281852959,-559.67229,0.000225,7]
[391002312,1760281853061,-151.0,0.000225,7]
[391002313,1760281853072,-151.0,0.000225,7]
[391002314,1760281853082,-151.0,0.000225,7]
[391002315,1760281853092,-151.0,0.000225,7]
[391002316,1760281853102,-151.0,0.000225,7]
[391002317,1760281853115,-151.0,0.000225,7]
[391002318,1760281853125,-151.0,0.000225,7]
[391002319,1760281853135,-151.0,0.000225,7]
[391002320,1760281853145,-151.0,0.000225,7]
[391002321,1760281853155,-151.0,0.000225,7]
[391002322,1760281853165,-220.875325,0.000225,7]
[391002323,1760281853175,-151.0,0.000225,7]
[391002324,1760281853185,-151.0,0.000225,7]
[391002325,1760281853195,-151.0,0.000225,7]
[391002326,1760281853205,-151.0,0.000225,7]
[391002327,1760281853216,-151.0,0.000225,7]
[391002328,1760281853226,-151.0,0.000225,7]
[391002329,1760281853236,-203.611045,0.000225,7]
[391002330,1760281853246,-151.0,0.000225,7]
[391002331,1760281853256,-151.0,0.000225,7]
[391002332,1760281853266,-151.0,0.000225,7]
[391002333,1760281853276,-151.0,0.000225,7]
[391002334,1760281853290,-151.0,0.000225,7]
[391002335,1760281853300,-151.0,0.000225,7]
[391002336,1760281853310,-385.773509,0.000225,7]
[391002337,1760281853320,-385.773509,0.000225,7]
[391002338,1760281853330,-385.773509,0.000225,7]
[391002339,1760281853341,-385.773509,0.000225,7]
[391002340,1760281853351,-151.0,0.000225,7]
[391002341,1760281853362,-151.0,0.000225,7]
[391002342,1760281853372,-168.29224,0.000225,7]
[391002343,1760281853381,-151.0,0.000225,7]
[391002344,1760281853391,-535.902718,0.000225,7]
[391002345,1760281853401,-535.902718,0.000225,7]
[391002346,1760281853410,-535.902718,0.000225,7]
[391002347,1760281853420,-250.0,0.000225,10]
[391002348,1760281853430,-163.251414,0.000225,7]
[391002349,1760281853439,-535.902718,0.000225,7]
[391002350,1760281853449,-151.864505,0.000225,7]
[391002351,1760281853459,-151.0,0.000225,7]
[391002352,1760281853469,-151.0,0.000225,7]
[391002353,1760281853479,-151.0,0.000225,7]
[391002354,1760281853489,-151.0,0.000225,7]
[391002355,1760281853499,-286.609541,0.000225,7]
[391002356,1760281853509,-151.0,0.000225,7]
[391002357,1760281853519,-151.0,0.000225,7]
[391002358,1760281853529,-151.0,0.000225,7]
[391002359,1760281853538,-177.039331,0.000225,7]
[391002360,1760281853548,-151.0,0.000225,7]
[391002361,1760281853562,-151.0,0.000225,7]
[391002362,1760281853573,-151.0,0.000225,7]
[391002363,1760281853583,-151.0,0.000225,7]
[391002364,1760281853592,-244.565631,0.000225,7]
[391002365,1760281853602,-169.198314,0.000225,7]
[391002366,1760281853614,-169.198314,0.000225,7]
[391002367,1760281853628,-164.767571,0.000225,7]
[391002368,1760281853639,-169.198314,0.000225,7]
[391002369,1760281853649,-151.0,0.000225,7]
[391002370,1760281853659,-164.767571,0.000225,7]
[391002371,1760281853670,-1076.099139,0.000225,7]
[391002372,1760281853679,-151.0,0.000225,7]
[391002373,1760281853689,-164.767571,0.000225,7]
[391002374,1760281853699,-1076.099139,0.000225,7]
[391002375,1760281853709,-164.767571,0.000225,7]
[391002376,1760281853719,-151.0,0.000225,7]
[391002377,1760281853730,-1076.099139,0.000225,7]
[391002378,1760281853740,-169.198314,0.000225,7]
[391002379,1760281853751,-1076.099139,0.000225,7]
[391002380,1760281853764,-473.397114,0.000225,7]
[391002381,1760281853774,-473.397114,0.000225,7]
[391002382,1760281853784,-473.397114,0.000225,7]
[391002383,1760281853793,-473.397114,0.000225,7]
[391002384,1760281853805,-426.46917,0.000225,7]
[391002385,1760281853815,-151.0,0.000225,7]
[391002386,1760281853825,-426.46917,0.000225,7]
[391002387,1760281853836,-399.668972,0.000225,7]
[391002388,1760281853846,-151.0,0.000225,7]
[391002389,1760281853857,-151.0,0.000225,7]
[391002390,1760281853867,-426.46917,0.000225,7]
[391002391,1760281853877,-399.668972,0.000225,7]
[391002392,1760281853887,-151.0,0.000225,7]
[391002393,1760281853896,-153.349608,0.000225,7]
[391002394,1760281853906,-153.920505,0.000225,7]
[391002395,1760281853916,-426.46917,0.000225,7]
[391002396,1760281853926,-5896.271191,0.000225,7]
[391002397,1760281853936,-399.668972,0.000225,7]
[391002398,1760281853946,-151.0,0.000225,7]
[391002399,1760281853957,-5896.271191,0.000225,7]
[391002400,1760281853966,-399.668972,0.000225,7]
[391002401,1760281853976,-151.0,0.000225,7]
[391002402,1760281853987,-5896.271191,0.000225,7]
[391002403,1760281853996,-151.0,0.000225,7]
[391002404,1760281854005,-5896.271191,0.000225,7]
[391002405,1760281854015,-151.0,0.000225,7]
[391002406,1760281854025,-151.745965,0.000225,7]
[391002407,1760281854034,-151.0,0.000225,7]
[391002408,1760281854044,-151.0,0.000225,7]
[391002409,1760281854053,-151.0,0.000225,7]
[391002410,1760281854063,-154.85696,0.000225,7]
[391002411,1760281854072,-151.0,0.000225,7]
[391002412,1760281854082,-154.85696,0.000225,7]
[391002413,1760281854093,-151.0,0.000225,7]
[391002414,1760281854103,-154.85696,0.000225,7]
[391002415,1760281854114,-151.0,0.000225,7]
[391002416,1760281854124,-151.0,0.000225,7]
[391002417,1760281854134,-154.85696,0.000225,7]
[391002418,1760281854144,-151.0,0.000225,7]
[391002419,1760281854154,-154.930091,0.000225,7]
[391002420,1760281854164,-154.930091,0.000225,7]
[391002421,1760281854174,-154.930091,0.000225,7]
[391002422,1760281854184,-154.930091,0.000225,7]
[391002423,1760281854193,-151.0,0.000225,7]
[391002424,1760281854203,-151.0,0.000225,7]
[391002425,1760281854213,-151.0,0.000225,7]
[391002426,1760281854222,-152.415686,0.000225,7]
[391002427,1760281854233,-151.0,0.000225,7]
[391002428,1760281854243,-231.888162,0.000225,7]
[391002429,1760281854253,-151.0,0.000225,7]
[391002430,1760281854263,-151.0,0.000225,7]
[391002431,1760281854273,-231.888162,0.000225,7]
[391002432,1760281854283,-151.0,0.000225,7]
[391002433,1760281854293,-178.951428,0.000225,7]
[391002434,1760281854302,-231.888162,0.000225,7]
[391002435,1760281854312,-178.951428,0.000225,7]
[391002436,1760281854322,-231.888162,0.000225,7]
[391002437,1760281854331,-178.951428,0.000225,7]
[391002438,1760281854340,-178.951428,0.000225,7]
[391002439,1760281854350,-151.0,0.000225,7]
[391002440,1760281854363,-151.0,0.000225,7]
[391002441,1760281854372,-151.0,0.000225,7]
[391002442,1760281854382,-151.0,0.000225,7]
[391002443,1760281854392,-151.0,0.000225,7]
[391002444,1760281854402,-151.0,0.000225,7]
[391002445,1760281854412,-151.0,0.000225,7]
[391002446,1760281854421,-164.40635285,0.000225,7]
[391002447,1760281854431,-151.0,0.000225,7]
[391002448,1760281854441,-168.912535,0.000225,7]
[391002449,1760281854450,-166.910723,0.000225,7]
[391002450,1760281854460,-166.910723,0.000225,7]
[391002451,1760281854470,-166.910723,0.000225,7]
[391002452,1760281854480,-166.910723,0.000225,7]
[391002453,1760281854489,-397.866027,0.000225,7]
[391002454,1760281854499,-397.866027,0.000225,7]
[391002455,1760281854508,-397.866027,0.000225,7]
[391002456,1760281854518,-397.866027,0.000225,7]
[391002457,1760281854528,-151.0,0.000225,3]
[391002458,1760281854538,-151.0,0.000225,3]
[391002459,1760281854547,-151.0,0.000225,3]
[391002460,1760281854557,-151.0,0.000225,3]
[391002461,1760281854566,-190.454604,0.000225,3]
[391002462,1760281854576,-151.0,0.000225,7]
[391002463,1760281854586,-151.0,0.000225,7]
[391002464,1760281854595,-151.0,0.000225,7]
[391002465,1760281854604,-151.0,0.000225,7]
[391002466,1760281854617,-151.0,0.000225,7]
[391002467,1760281854627,-151.0,0.000225,7]
[391002468,1760281854636,-151.0,0.000225,7]
[391002469,1760281854646,-151.0,0.000225,7]
[391002470,1760281854655,-505.15928884,0.00022521,2]
[391002471,1760281854665,-1001.32292699,0.00022521,2]
[391002472,1760281854675,-1000.0,0.00022521,2]
[391002473,1760281854684,-1000.0,0.00022521,2]
[391002474,1760281854694,-1000.0,0.00022521,2]
[391002475,1760281854703,-506.85560792,0.00022521,2]
[391002476,1760281854713,-1000.0,0.00022521,2]
[391002477,1760281854722,-1000.0,0.00022521,2]
[391002478,1760281854732,-217.0,0.00022556,2]
[391002479,1760281854741,-250.0,0.000226,10]
[391002480,1760281854824,-2226.62,0.00022647,3]
[391002481,1760281854842,-1113.32,0.00022647,3]
[391002482,1760281854851,-556.66,0.00022647,3]
[391002483,1760281854863,-217.0,0.0002268,2]
[391002484,1760281854872,-284.0,0.0002269,2]
[391002485,1760281854882,-252.242272,0.000227,10]
[391002486,1760281854892,-1500.0,0.00022739,10]
[391002487,1760281854901,-217.0,0.00022766,2]
[391002488,1760281854911,-160.0,0.0002278,2]
[391002489,1760281854921,-217.0,0.000228,2]
[391002490,1760281854930,-438.56259716,0.00022813,2]
[391002491,1760281854940,-3980.23716781,0.0002282,2]
[391002492,1760281855977,-7886.29,0.0002282,2]
[391002493,1760281873953,500.0,0.00019806,2]
[391002495,1760281969582,150.0,0.00018737,2]
[391002496,1760281970011,150.0,0.00019629,2]
[391002497,1760281970449,150.0,0.00020522,2]
[391002500,1760282040899,150.0,0.00018678,2]
[391002501,1760282041397,150.0,0.00019567,2]
[391002502,1760282041846,150.0,0.00020456,2]
[391002503,1760282109253,150.0,0.0001867,2]
[391002504,1760282109779,150.0,0.00019559,2]
[391002505,1760282110204,150.0,0.00020449,2]
[391002510,1760282164450,271.8085077,0.00020951,5]
[391002511,1760282175912,150.0,0.00018683,2]
[391002512,1760282176347,150.0,0.00019572,2]
[391002513,1760282176815,150.0,0.00020462,2]
[391002515,1760282179068,151.0,0.000181,2]
[391002516,1760282180117,151.0,0.00018433,2]
[391002517,1760282182025,151.0,0.000191,2]
[391002521,1760282241423,150.0,0.00018687,2]
[391002522,1760282245467,151.0,0.000181,2]
[391002527,1760282385884,1000.0,0.00020518,5]
[391002584,1760282976114,193.04051928,0.00020975,2]
[391002623,1760283031868,-1199.8,0.00021066,10]
[391002624,1760283032472,-2966.26,0.00021066,10]
[391002625,1760283032482,-293.54608042,0.00021075,2]
[391002626,1760283032491,-300.0,0.00021075,2]
[391002627,1760283032501,-300.0,0.00021075,2]
[391002628,1760283032510,-167.0,0.00021075,2]
[391002629,1760283032519,-1975.96123342,0.00021076,2]
[391002630,1760283032528,-10858.83740427,0.00021076,2]
[391002631,1760283032538,-132817.08453184,0.00021076,2]
[391002632,1760283032549,-373.91555845,0.00021076,2]
[391002633,1760283032560,-3817.0,0.00021076,2]
[391002635,1760283032574,-8109.18304,0.00021076,2]
[391002636,1760283032584,-1024.82399082,0.00021076,2]
[391002808,1760283037736,-1000.5,0.00021066,10]
[391002809,1760283037793,-2471.21,0.00021066,10]
[391002810,1760283037802,-385658.89513387,0.00021076,2]
[391002811,1760283037813,-200.0,0.00021076,10]
[391002812,1760283037824,-200.0,0.00021076,10]
[391002813,1760283037834,-217.78,0.00021163,2]
[391002814,1760283037843,-1000.0,0.00021163,2]
[391002815,1760283037852,-151.0,0.00021163,2]
[391002816,1760283037861,-1000.0,0.00021163,2]
[391002817,1760283037871,-151.0,0.00021163,2]
[391002818,1760283037880,-500.0,0.00021163,2]
[391002819,1760283037889,-18603.8837,0.00021163,2]
[391002820,1760283037898,-1000.0,0.00021163,2]
[391002821,1760283037907,-500.0,0.00021163,2]
[391002822,1760283037916,-151.0,0.00021163,2]
[391002823,1760283037926,-151.0,0.00021163,2]
[391002824,1760283037935,-1000.0,0.00021163,2]
[391002825,1760283037944,-500.0,0.00021163,2]
[391002826,1760283037958,-500.0,0.00021163,2]
[391002827,1760283037967,-151.0,0.00021163,2]
[391002828,1760283037976,-500.0,0.00021163,2]
[391002829,1760283037987,-1000.0,0.00021163,2]
[391002830,1760283037996,-500.0,0.00021163,2]
[391002831,1760283038006,-185.05224795,0.00021163,2]
[391002832,1760283038016,-500.0,0.00021163,2]
[391002833,1760283038025,-1000.0,0.00021163,2]
[391002834,1760283038034,-500.0,0.00021163,2]
[391002835,1760283038044,-500.0,0.00021163,2]
[391002836,1760283038053,-1000.0,0.00021163,2]
[391002837,1760283038063,-500.0,0.00021163,2]
[391002838,1760283038072,-151.0,0.00021163,2]
[391002839,1760283038083,-500.0,0.00021163,2]
[391002840,1760283038097,-500.0,0.00021163,2]
[391002841,1760283038107,-151.0,0.00021163,2]
[391002842,1760283038241,-500.0,0.00021163,2]
[391002843,1760283038258,-500.0,0.00021163,2]
[391002844,1760283038268,-151.0,0.00021163,2]
[391002845,1760283038278,-500.0,0.00021163,2]
[391002846,1760283038287,-500.0,0.00021163,2]
[391002847,1760283038297,-151.0,0.00021163,2]
[391002848,1760283038306,-500.0,0.00021163,2]
[391002849,1760283038316,-500.0,0.00021163,2]
[391002850,1760283038326,-151.0,0.00021163,2]
[391002851,1760283038337,-500.0,0.00021163,2]
[391002852,1760283038352,-500.0,0.00021163,2]
[391002853,1760283038362,-151.0,0.00021163,2]
[391002854,1760283038371,-500.0,0.00021163,2]
[391002855,1760283038381,-500.0,0.00021163,2]
[391002856,1760283038391,-151.0,0.00021163,2]
[391002857,1760283038400,-500.0,0.00021163,2]
[391002858,1760283038410,-500.0,0.00021163,2]
[391002859,1760283038420,-151.0,0.00021163,2]
[391002860,1760283038429,-500.0,0.00021163,2]
[391002861,1760283038439,-155.786338,0.00021163,2]
[391002862,1760283038449,-500.0,0.00021163,2]
[391002863,1760283038459,-500.0,0.00021163,2]
[391002864,1760283038468,-151.0,0.00021163,2]
[391002865,1760283038477,-500.0,0.00021163,2]
[391002866,1760283038487,-155.97975996,0.00021163,2]
[391002867,1760283038497,-500.0,0.00021163,2]
[391002868,1760283038506,-518.84593601,0.00021163,2]
[391002869,1760283038516,-500.0,0.00021163,2]
[391002870,1760283038525,-243.02250788,0.00021163,2]
[391002871,1760283038535,-500.0,0.00021163,2]
[391002872,1760283038545,-500.0,0.00021163,2]
[391002873,1760283038554,-1000.0,0.00021163,2]
[391002874,1760283038564,-1000.0,0.00021163,2]
[391002875,1760283038586,-250.0,0.00021163,2]
[391002876,1760283038606,-1000.0,0.00021163,2]
[391002877,1760283038617,-250.0,0.00021163,2]
[391002878,1760283038627,-168.3888056,0.00021163,2]
[391002879,1760283038637,-1000.0,0.00021163,2]
[391002880,1760283038647,-250.0,0.00021163,2]
[391002881,1760283038657,-17906.66503211,0.00021163,2]
[391002882,1760283038666,-507.43,0.00021166,3]
[391002883,1760283038675,-253.72,0.00021166,3]
[391002884,1760283038685,-761.16,0.00021166,3]
[391002885,1760283038694,-500.0,0.00021173,2]
[391002886,1760283038704,-500.0,0.00021173,2]
[391002887,1760283038714,-500.0,0.00021173,2]
[391002888,1760283038725,-500.0,0.00021173,2]
[391002889,1760283038735,-500.0,0.00021173,2]
[391002890,1760283038745,-345.47078889,0.00021173,2]
[391002891,1760283038756,-501.27033853,0.00021173,2]
[391002892,1760283038767,-500.0,0.00021173,2]
[391002893,1760283038778,-500.0,0.00021173,2]
[391002894,1760283038789,-500.0,0.00021173,2]
[391002895,1760283038799,-502.41453798,0.00021173,2]
[391002896,1760283038809,-457.2860564,0.00021173,2]
[391002897,1760283038819,-500.91451526,0.00021173,2]
[391002898,1760283038835,-500.0,0.00021173,2]
[391002899,1760283038846,-501.39815425,0.00021173,2]
[391002900,1760283038857,-504.95082876,0.00021173,2]
[391002901,1760283038869,-500.0,0.00021173,2]
[391002902,1760283038879,-500.0,0.00021173,2]
[391002903,1760283038889,-500.0,0.00021173,2]
[391002904,1760283038905,-500.0,0.00021173,2]
[391002905,1760283038915,-500.0,0.00021173,2]
[391002906,1760283038926,-500.0,0.00021173,2]
[391002907,1760283038936,-405.24828615,0.00021173,2]
[391002908,1760283038946,-151.5851244,0.00021173,2]
[391002909,1760283038956,-500.0,0.00021173,2]
[391002910,1760283038966,-500.0,0.00021173,2]
[391002911,1760283038976,-500.0,0.00021175,2]
[391002912,1760283038986,-389.97954245,0.00021175,2]
[391002913,1760283038995,-500.0,0.00021175,2]
[391002914,1760283039005,-222.73901472,0.00021175,2]
[391002915,1760283039014,-500.0,0.00021175,2]
[391002916,1760283039023,-500.0,0.00021175,2]
[391002917,1760283039033,-500.0,0.00021175,2]
[391002918,1760283039043,-500.0,0.00021175,2]
[391002919,1760283039052,-351.08097568,0.00021175,2]
[391002920,1760283039062,-631.9982415,0.00021175,2]
[391002921,1760283039072,-370000.0,0.00021176,2]
[391002922,1760283039088,-500.0,0.00021176,2]
[391002923,1760283039098,-258.9864003,0.00021313,2]
[391002924,1760283039118,-168.0,0.00021425,2]
[391002925,1760283039129,-500.0,0.0002145,2]
[391002926,1760283039140,-1975.96123338,0.00021607,2]
[391002927,1760283039150,-1685.65038283,0.00021616,2]
[391002928,1760283039160,-337.57799249,0.00021675,2]
[391002929,1760283039171,-168.0,0.00021691,2]
[391002930,1760283039183,-300.0,0.00021699,20]
[391002931,1760283039193,-300.0,0.00021699,20]
[391002932,1760283039203,-300.0,0.00021699,20]
[391002934,1760283039212,-300.0,0.00021699,20]
[391002936,1760283039221,-300.0,0.00021699,20]
[391002937,1760283039231,-300.0,0.00021699,20]
[391002938,1760283039241,-300.0,0.00021699,20]
[391002939,1760283039251,-300.0,0.00021699,20]
[391002940,1760283039260,-300.0,0.00021699,20]
[391002941,1760283039269,-300.0,0.00021699,20]
[391002942,1760283039283,-300.0,0.00021699,20]
[391002943,1760283039293,-300.0,0.00021699,20]
[391002944,1760283039303,-300.0,0.00021699,20]
[391002945,1760283039314,-300.0,0.00021699,20]
[391002946,1760283039329,-300.0,0.00021699,20]
[391002947,1760283039344,-19292.2273969,0.00021711,2]
[391002949,1760283039357,-500.35464573,0.00021721,2]
[391002951,1760283039368,-500.0,0.00021721,2]
[391002953,1760283039381,-425.78555058,0.00021721,2]
[391002954,1760283039395,-1000.0,0.00021721,2]
[391002956,1760283039411,-1000.0,0.00021721,2]
[391002958,1760283039424,-1000.0,0.00021721,2]
[391002960,1760283039437,-1000.0,0.00021721,2]
[391002961,1760283039455,-1000.0,0.00021721,2]
[391002962,1760283039470,-1000.0,0.00021721,2]
[391002963,1760283039483,-1000.0,0.00021721,2]
[391002964,1760283039495,-500.0,0.00021721,2]
[391002965,1760283039508,-1000.0,0.00021721,2]
[391002966,1760283039521,-500.0,0.00021724,2]
[391002967,1760283039534,-168.0,0.00021751,2]
[391002968,1760283039548,-208.55715187,0.00021808,5]
[391002969,1760283039560,-4197.0,0.00021818,2]
[391002970,1760283039571,-162.93426149,0.00021821,2]
[391002971,1760283039584,-292.98838901,0.00021821,2]
[391002972,1760283039597,-296.60900107,0.00021821,2]
[391002973,1760283039608,-533.89620193,0.00021821,2]
[391002974,1760283039623,-949.14880343,0.00021821,2]
[391002975,1760283039636,-1481.56196035,0.00021821,2]
[391002976,1760283039649,-2167.202,0.00021889,2]
[391002977,1760283039662,-632.99,0.00021889,2]
[391002978,1760283039675,-413.571,0.00021889,2]
[391002979,1760283039690,-168.0,0.00021915,2]
[391002980,1760283039704,-1500.0,0.00021917,10]
[391002981,1760283039715,-100000.0,0.0002199,2]
[391002982,1760283039727,-500.0,0.00021998,2]
[391002983,1760283039738,-187675.14,0.00022,7]
[391002984,1760283039752,-2088.78532203,0.00022,7]
[391002985,1760283039767,-402.2877588,0.00022,7]
[391002986,1760283039781,-160.0,0.00022,7]
[391002987,1760283039792,-151.0,0.00022,7]
[391002988,1760283039803,-151.0,0.00022,7]
[391002989,1760283039815,-151.0,0.00022,7]
[391002990,1760283039831,-151.0,0.00022,7]
[391002991,1760283039841,-500.0,0.00022023,2]
[391002992,1760283039852,-503.78777992,0.00022023,2]
[391002993,1760283039864,-500.0,0.00022023,2]
[391002994,1760283039876,-151.0,0.0002206,2]
[391002995,1760283039887,-151.0,0.0002206,2]
[391002996,1760283039900,-151.0,0.0002206,2]
[391002997,1760283039911,-151.0,0.0002206,2]
[391002998,1760283039924,-198.0,0.0002206,2]
[391002999,1760283039937,-215.80380988,0.0002206,2]
[391003000,1760283039949,-151.54370124,0.0002206,2]
[391003001,1760283039961,-151.0,0.0002206,2]
[391003002,1760283039972,-151.0,0.0002206,2]
[391003003,1760283039984,-151.0,0.0002206,2]
[391003004,1760283039995,-151.0,0.0002206,2]
[391003005,1760283040007,-151.0,0.0002206,2]
[391003006,1760283040019,-151.0,0.0002206,2]
[391003007,1760283040030,-198.0,0.0002206,2]
[391003008,1760283040042,-151.0,0.0002206,2]
[391003009,1760283040053,-151.0,0.0002206,2]
[391003010,1760283040064,-151.0,0.0002206,2]
[391003011,1760283040077,-500.0,0.0002206,2]
[391003012,1760283040088,-500.0,0.0002206,2]
[391003013,1760283040104,-151.0,0.0002206,2]
[391003014,1760283040115,-151.0,0.000221,6]
[391003015,1760283040127,-151.56421726,0.00022115,2]
[391003016,1760283040139,-220.5979126,0.00022115,2]
[391003017,1760283040151,-151.0,0.00022115,2]
[391003018,1760283040163,-293.27362221,0.00022115,2]
[391003019,1760283040177,-151.0,0.00022115,2]
[391003020,1760283040189,-151.0,0.00022115,2]
[391003021,1760283040200,-500.0,0.00022115,2]
[391003022,1760283040212,-611.80567964,0.00022115,2]